[Event "GER-ch Youth U14 2019"]
[Site "Willingen"]
[Date "2019.06.13"]
[Round "7.15"]
[White "Sinnhoefer, Joshua"]
[Black "Evering, Soeren"]
[Result "1-0"]
[ECO "C56"]
[WhiteElo "1466"]
[BlackElo "1879"]
[Annotator "NA"]
[PlyCount "72"]
[EventDate "2019.06.07"]
[EventType "swiss"]
[EventRounds "9"]
[EventCountry "GER"]
[SourceTitle "playchess.com"]
[Source "ChessBase"]
[SourceQuality "1"]
[TimeControl "40/5400+30:1800+30"]

1. e4 {[%emt 0:00:00]} e5 {[%emt 0:00:00]} 2. Nf3 {[%emt 0:00:00]} Nc6 {[%emt 0:00:00]} 3. d4 {[%emt 0:00:00]} exd4 {[%emt 0:00:00]} 4. Bc4 {[%emt 0:00:00]} Nf6 {[%emt 0:00:29]} 5. O-O {[%emt 0:00:06]} Nxe4 {[%emt 0:01:07]} 6. Re1 {[%emt 0:00:06]} d5 {[%emt 0:00:23]} 7. Bxd5 {[%emt 0:00:08]} Qxd5 {[%emt 0:00:33]} 8. Nc3 {[%emt 0:00:12]} Qh5 {[%emt 0:01:24]} 9. Nxe4 {[%emt 0:00:28]} Be6 {[%emt 0:00:59]} 10. Bg5 {[%emt 0:00:23]} h6 {[%emt 0:05:36]} 11. Bf6 {[%emt 0:00:21]} Qg6 {[%emt 0:01:29]} 12. Nh4 {[%emt 0:04:10]} Qh7 {[%emt 0:03:03]} 13. Qd3 {[%emt 0:13:40]} Be7 {[%emt 0:34:53]} 14. Bxe7 {[%emt 0:02:02]} Nxe7 {[%emt 0:01:52]} 15. Qb5+ {[%emt 0:00:21]} Bd7 {[%emt 0:08:48]} 16. Qxb7 {[%emt 0:06:47]} O-O {[%emt 0:08:09]} 17. Qxc7 {[%emt 0:00:54]} Nf5 {[%emt 0:10:20]} 18. Qxd7 {[%emt 0:03:43]} Nxh4 {[%emt 0:00:07]} 19. Qg4 {[%emt 0:00:18]} Ng6 {[%emt 0:02:07]} 20. Ng3 {[%emt 0:03:20]} Rac8 {[%emt 0:06:54]} 21. Rac1 {[%emt 0:01:01]} Rfd8 {[%emt 0:00:48]} 22. Red1 {[%emt 0:10:44]} Ne5 {[%emt 0:02:53]} 23. Qf5 {[%emt 0:00:57]} Nc4 {[%emt 0:02:20]} 24. b3 {[%emt 0:03:00]} Na3 {[%emt 0:01:20]} 25. Rxd4 {[%emt 0:01:13]} Qxf5 {[%emt 0:01:04]} 26. Nxf5 {[%emt 0:00:15]} Rxd4 {[%emt 0:00:21]} 27. Nxd4 {[%emt 0:00:10]} Rd8 {[%emt 0:00:21]} 28. c3 {[%emt 0:00:10]} a6 {[%emt 0:00:37]} 29. Kf1 {[%emt 0:00:21]} f6 {[%emt 0:00:27]} 30. Ke2 {[%emt 0:00:28]} Kf7 {[%emt 0:00:20]} 31. Ke3 {[%emt 0:01:02]} g6 32. c4 {[%emt 0:00:40]} Rc8 {[%emt 0:01:10]} 33. Kd3 {[%emt 0:00:43]} Nb5 {[%emt 0:00:25]} 34. Nxb5 {[%emt 0:00:12]} axb5 {[%emt 0:00:02]} 35. Rc2 {[%emt 0:01:00]} bxc4+ {[%emt 0:00:52]} 36. Rxc4 {[%emt 0:00:21]} Ra8 {[%emt 0:00:47] normal} 1-0

[Event "GER-ch Youth U14 2019"]
[Site "Willingen"]
[Date "2019.06.13"]
[Round "7.16"]
[White "Roste, Hugo"]
[Black "Schauties, Nico Antonio"]
[Result "1/2-1/2"]
[ECO "D31"]
[WhiteElo "1287"]
[BlackElo "1866"]
[Annotator "NA"]
[PlyCount "87"]
[EventDate "2019.06.07"]
[EventType "swiss"]
[EventRounds "9"]
[EventCountry "GER"]
[SourceTitle "playchess.com"]
[Source "ChessBase"]
[SourceQuality "1"]
[TimeControl "40/5400+30:1800+30"]

1. d4 {[%emt 0:00:00]} d5 {[%emt 0:00:00]} 2. c4 {[%emt 0:00:00]} e6 {[%emt 0:00:00]} 3. Nc3 {[%emt 0:00:00]} c6 {[%emt 0:00:00]} 4. cxd5 {[%emt 0:00:25]} exd5 {[%emt 0:00:00]} 5. Qc2 {[%emt 0:00:35]} Be7 {[%emt 0:00:18]} 6. Nf3 {[%emt 0:01:03]} Nf6 {[%emt 0:00:03]} 7. Bg5 {[%emt 0:01:07]} Nbd7 {[%emt 0:00:45]} 8. e3 {[%emt 0:00:21]} O-O {[%emt 0:00:41]} 9. Bd3 {[%emt 0:01:01]} Re8 {[%emt 0:00:09]} 10. h3 {[%emt 0:02:46]} Nf8 {[%emt 0:07:52]} 11. Bf4 {[%emt 0:00:56]} Ng6 {[%emt 0:03:36]} 12. Bh2 {[%emt 0:00:34]} Bd6 {[%emt 0:00:19]} 13. Bxd6 {[%emt 0:00:25]} Qxd6 {[%emt 0:00:02]} 14. O-O-O {[%emt 0:01:21]} b5 {[%emt 0:01:53]} 15. Kb1 {[%emt 0:02:29]} b4 {[%emt 0:01:38]} 16. Na4 {[%emt 0:02:11]} Ne4 {[%emt 0:02:55]} 17. g4 {[%emt 0:07:40]} Qf6 {[%emt 0:07:24]} 18. Qe2 {[%emt 0:03:58]} Nf4 {[%emt 0:09:53]} 19. exf4 {[%emt 0:31:54]} Nc3+ {[%emt 0:01:06]} 20. Nxc3 {[%emt 0:00:28]} Rxe2 {[%emt 0:00:06]} 21. Nxe2 {[%emt 0:00:39]} a5 {[%emt 0:02:16]} 22. Rc1 {[%emt 0:02:04]} a4 {[%emt 0:05:34]} 23. Ne5 {[%emt 0:02:39]} Bb7 {[%emt 0:01:02]} 24. Nd7 {[%emt 0:02:19]} Qe7 {[%emt 0:02:54]} 25. Nc5 {[%emt 0:00:36]} Bc8 {[%emt 0:07:52]} 26. g5 {[%emt 0:00:43]} f6 {[%emt 0:01:12]} 27. h4 {[%emt 0:01:17]} Bg4 {[%emt 0:02:01]} 28. Ng3 {[%emt 0:01:41]} Qc7 {[%emt 0:01:23]} 29. gxf6 {[%emt 0:02:44]} Qxf4 {[%emt 0:00:49]} 30. Be2 {[%emt 0:02:33]} Qxd4 {[%emt 0:06:52]} 31. Bxg4 {[%emt 0:02:53]} Qxg4 {[%emt 0:00:05]} 32. fxg7 {[%emt 0:01:16]} a3 {[%emt 0:01:14]} 33. b3 {[%emt 0:02:09]} Ra5 {[%emt 0:06:52]} 34. Nb7 {[%emt 0:08:13]} Rb5 {[%emt 0:04:52]} 35. Nd6 {[%emt 0:01:00]} Qg6+ {[%emt 0:02:58]} 36. Ndf5 {[%emt 0:00:27]} d4 {[%emt 0:00:33]} 37. h5 {[%emt 0:02:16]} Qf6 {[%emt 0:00:14]} 38. Rc2 {[%emt 0:01:30]} d3 {[%emt 0:12:50]} 39. Rd2 {[%emt 0:01:26]} Rxf5 {[%emt 0:01:46]} 40. Nxf5 {[%emt 0:00:22]} Qxf5 {[%emt 0:00:02]} 41. h6 {[%emt 0:30:47]} Qe5 {[%emt 0:31:05]} 42. Rhd1 {[%emt 0:02:25]} c5 {[%emt 0:01:10]} 43. Rc1 {[%emt 0:01:38]} Kf7 {[%emt 0:01:27]} 44. Rcd1 {[%emt 0:01:31] normal} 1/2-1/2

[Event "GER-ch Youth U14 2019"]
[Site "Willingen"]
[Date "2019.06.13"]
[Round "7.17"]
[White "Seng, Alexander"]
[Black "Weidenhoefer, Max"]
[Result "0-1"]
[ECO "D10"]
[WhiteElo "1505"]
[BlackElo "1787"]
[Annotator "NA"]
[PlyCount "90"]
[EventDate "2019.06.07"]
[EventType "swiss"]
[EventRounds "9"]
[EventCountry "GER"]
[SourceTitle "playchess.com"]
[Source "ChessBase"]
[SourceQuality "1"]
[TimeControl "40/5400+30:1800+30"]

1. d4 {[%emt 0:00:00]} d5 {[%emt 0:00:00]} 2. c4 {[%emt 0:00:00]} c6 {[%emt 0:00:00]} 3. cxd5 {[%emt 0:00:05]} cxd5 {[%emt 0:00:00]} 4. Bf4 {[%emt 0:00:20]} Nc6 {[%emt 0:00:35]} 5. e3 {[%emt 0:00:19]} Nf6 {[%emt 0:00:14]} 6. Nc3 {[%emt 0:00:21]} a6 {[%emt 0:01:16]} 7. Bd3 {[%emt 0:01:38]} e6 {[%emt 0:00:45]} 8. Nf3 {[%emt 0:02:13]} Be7 {[%emt 0:16:16]} 9. O-O {[%emt 0:05:42]} Nh5 {[%emt 0:03:59]} 10. Be5 {[%emt 0:02:01]} f6 {[%emt 0:08:18]} 11. Bg3 {[%emt 0:05:50]} Nxg3 {[%emt 0:00:57]} 12. hxg3 {[%emt 0:00:58]} g6 {[%emt 0:06:38]} 13. a3 {[%emt 0:06:58]} Kf7 {[%emt 0:06:26]} 14. Nd2 {[%emt 0:06:09]} h5 {[%emt 0:09:19]} 15. f4 {[%emt 0:04:13]} f5 {[%emt 0:03:12]} 16. Nf3 {[%emt 0:08:20]} b6 {[%emt 0:06:59]} 17. b4 {[%emt 0:06:45]} Nb8 {[%emt 0:09:08]} 18. Rc1 {[%emt 0:04:34]} a5 {[%emt 0:06:36]} 19. Qa4 {[%emt 0:11:36]} Bb7 {[%emt 0:01:34]} 20. b5 {[%emt 0:07:00]} Nd7 {[%emt 0:00:59]} 21. Ne5+ {[%emt 0:00:48]} Nxe5 {[%emt 0:01:12]} 22. fxe5 {[%emt 0:00:08]} Qf8 {[%emt 0:01:57]} 23. Nb1 {[%emt 0:00:44]} Qh6 {[%emt 0:01:19]} 24. Rf3 {[%emt 0:05:24]} Rac8 {[%emt 0:02:13]} 25. Qd1 {[%emt 0:02:20]} Rxc1 {[%emt 0:01:04]} 26. Qxc1 {[%emt 0:00:06]} Rc8 {[%emt 0:00:22]} 27. Qd2 {[%emt 0:01:19]} g5 {[%emt 0:01:30]} 28. Qe1 {[%emt 0:04:56]} g4 {[%emt 0:00:26]} 29. Rf2 {[%emt 0:03:22]} h4 {[%emt 0:03:15]} 30. Re2 {[%emt 0:02:35]} hxg3 {[%emt 0:00:11]} 31. Qxg3 {[%emt 0:00:17]} Rc1+ {[%emt 0:00:09]} 32. Re1 {[%emt 0:01:55]} Bh4 {[%emt 0:00:25]} 33. Qxh4 {[%emt 0:00:32]} Qxh4 {[%emt 0:00:08]} 34. Rxc1 {[%emt 0:00:04]} g3 {[%emt 0:00:14]} 35. Rc7+ {[%emt 0:02:55]} Kg6 {[%emt 0:00:45]} 36. Rxb7 {[%emt 0:01:58]} Qh2+ {[%emt 0:00:07]} 37. Kf1 {[%emt 0:00:05]} Qh1+ {[%emt 0:00:05]} 38. Ke2 {[%emt 0:00:07]} Qxg2+ {[%emt 0:00:07]} 39. Kd1 {[%emt 0:01:16]} Qh1+ {[%emt 0:01:09]} 40. Kc2 {[%emt 0:01:10]} g2 {[%emt 0:00:19]} 41. Rb8 {[%emt 0:30:09]} g1=Q {[%emt 0:31:51]} 42. Rg8+ {[%emt 0:00:17]} Kf7 {[%emt 0:00:07]} 43. Rxg1 {[%emt 0:00:23]} Qxg1 {[%emt 0:00:07]} 44. Kd2 {[%emt 0:00:28]} Qf2+ {[%emt 0:00:11]} 45. Be2 {[%emt 0:00:54]} f4 {[%emt 0:00:11] normal} 0-1

[Event "GER-ch Youth U14 2019"]
[Site "Willingen"]
[Date "2019.06.13"]
[Round "7.18"]
[White "Bress, Aaron"]
[Black "Bornholdt, Joa Max"]
[Result "1-0"]
[ECO "A17"]
[WhiteElo "1849"]
[BlackElo "1754"]
[Annotator "NA"]
[PlyCount "65"]
[EventDate "2019.06.07"]
[EventType "swiss"]
[EventRounds "9"]
[EventCountry "GER"]
[SourceTitle "playchess.com"]
[Source "ChessBase"]
[SourceQuality "1"]
[TimeControl "40/5400+30:1800+30"]

1. c4 {[%emt 0:00:00]} Nf6 {[%emt 0:00:14]} 2. Nc3 {[%emt 0:00:00]} e6 {[%emt 0:00:05]} 3. g3 {[%emt 0:00:49]} d5 {[%emt 0:00:32]} 4. d4 {[%emt 0:28:34]} c6 {[%emt 0:00:27]} 5. cxd5 {[%emt 0:01:16]} exd5 {[%emt 0:00:12]} 6. Bg2 {[%emt 0:00:33]} Bf5 {[%emt 0:01:58]} 7. Nf3 {[%emt 0:03:23]} Bd6 {[%emt 0:03:11]} 8. O-O {[%emt 0:00:52]} O-O {[%emt 0:00:26]} 9. Nh4 {[%emt 0:05:26]} Be6 {[%emt 0:04:08]} 10. Qc2 {[%emt 0:03:07]} a5 {[%emt 0:07:08]} 11. Re1 {[%emt 0:18:10]} Nbd7 {[%emt 0:06:09]} 12. Na4 {[%emt 0:08:26]} Re8 {[%emt 0:09:42]} 13. Nc5 {[%emt 0:01:15]} Bxc5 {[%emt 0:05:25]} 14. dxc5 {[%emt 0:00:09]} Qe7 {[%emt 0:02:01]} 15. Be3 {[%emt 0:00:27]} Ne4 {[%emt 0:03:48]} 16. Rac1 {[%emt 0:03:03]} f5 {[%emt 0:07:47]} 17. Bd4 {[%emt 0:02:09]} Rac8 {[%emt 0:07:01]} 18. f3 {[%emt 0:04:19]} g5 {[%emt 0:02:59]} 19. fxe4 {[%emt 0:06:34]} dxe4 {[%emt 0:02:32]} 20. Nf3 {[%emt 0:01:34]} exf3 {[%emt 0:00:01]} 21. exf3 {[%emt 0:00:26]} Qf7 {[%emt 0:00:22]} 22. Qd2 {[%emt 0:01:32]} h6 {[%emt 0:02:16]} 23. a3 {[%emt 0:02:16]} Ra8 {[%emt 0:02:27]} 24. Bf1 {[%emt 0:00:48]} Bd5 {[%emt 0:03:19]} 25. Qc3 {[%emt 0:00:30]} Kh7 {[%emt 0:04:44]} 26. Bh3 {[%emt 0:01:26]} Kg8 {[%emt 0:01:50]} 27. Qd3 {[%emt 0:01:00]} Be6 {[%emt 0:02:10]} 28. Qc3 {[%emt 0:02:40]} Bd5 {[%emt 0:02:11]} 29. Qd3 {[%emt 0:00:33]} Be6 {[%emt 0:00:18]} 30. Bc3 {[%emt 0:02:13]} Red8 {[%emt 0:03:44]} 31. Qd4 {[%emt 0:00:28]} Kh7 {[%emt 0:00:35]} 32. Rxe6 {[%emt 0:00:59]} Nxc5 {[%emt 0:04:36]} 33. Bxf5+ {[%emt 0:00:14] normal} 1-0

[Event "GER-ch Youth U14 2019"]
[Site "Willingen"]
[Date "2019.06.13"]
[Round "7.19"]
[White "Wang, Xinyuan"]
[Black "Wildermuth, Nikolas Karl"]
[Result "1/2-1/2"]
[ECO "A41"]
[WhiteElo "2060"]
[BlackElo "1748"]
[Annotator "NA"]
[PlyCount "50"]
[EventDate "2019.06.07"]
[EventType "swiss"]
[EventRounds "9"]
[EventCountry "GER"]
[SourceTitle "playchess.com"]
[Source "ChessBase"]
[SourceQuality "1"]
[TimeControl "40/5400+30:1800+30"]

1. d4 {[%emt 0:00:00]} d6 {[%emt 0:00:00]} 2. c4 {[%emt 0:00:13]} e5 {[%emt 0:00:06]} 3. d5 {[%emt 0:01:12]} f5 {[%emt 0:00:21]} 4. Nc3 {[%emt 0:00:18]} Nf6 {[%emt 0:00:17]} 5. Bg5 {[%emt 0:01:01]} g6 {[%emt 0:02:23]} 6. e4 {[%emt 0:00:56]} Bg7 {[%emt 0:00:14]} 7. Bd3 {[%emt 0:00:18]} f4 {[%emt 0:00:52]} 8. f3 {[%emt 0:04:21]} O-O {[%emt 0:01:18]} 9. Nge2 {[%emt 0:01:09]} Nbd7 {[%emt 0:00:41]} 10. Qc2 {[%emt 0:05:13]} a5 {[%emt 0:01:46]} 11. Bh4 {[%emt 0:01:40]} Rf7 {[%emt 0:01:42]} 12. Bf2 {[%emt 0:00:52]} Ne8 {[%emt 0:01:14]} 13. O-O-O {[%emt 0:04:12]} Nc5 {[%emt 0:06:19]} 14. Bxc5 {[%emt 0:07:00]} dxc5 {[%emt 0:00:08]} 15. Na4 {[%emt 0:00:25]} Bf8 {[%emt 0:01:52]} 16. Nec3 {[%emt 0:01:42]} Bd7 17. Nb5 {[%emt 0:03:18]} Rb8 {[%emt 0:15:15]} 18. Be2 {[%emt 0:11:49]} c6 {[%emt 0:08:27]} 19. dxc6 {[%emt 0:00:43]} bxc6 {[%emt 0:00:08]} 20. Nbc3 {[%emt 0:00:13]} Ng7 {[%emt 0:00:33]} 21. Rdf1 {[%emt 0:12:07]} Ne6 {[%emt 0:02:11]} 22. Bd1 {[%emt 0:00:36]} Nd4 {[%emt 0:01:39]} 23. Qf2 {[%emt 0:00:50]} Be6 {[%emt 0:01:09]} 24. b3 {[%emt 0:00:25]} Qe7 {[%emt 0:01:37]} 25. g4 {[%emt 0:02:07]} h6 {[%emt 0:02:09] normal} 1/2-1/2

[Event "GER-ch Youth U14 2019"]
[Site "Willingen"]
[Date "2019.06.13"]
[Round "7.20"]
[White "Kolmykov, Egor"]
[Black "Gutewort, Paul Emil"]
[Result "1/2-1/2"]
[ECO "B06"]
[WhiteElo "1642"]
[BlackElo "1708"]
[Annotator "NA"]
[PlyCount "41"]
[EventDate "2019.06.07"]
[EventType "swiss"]
[EventRounds "9"]
[EventCountry "GER"]
[SourceTitle "playchess.com"]
[Source "ChessBase"]
[SourceQuality "1"]
[TimeControl "40/5400+30:1800+30"]

1. e4 {[%emt 0:00:00]} g6 {[%emt 0:00:00]} 2. d3 {[%emt 0:00:00]} Bg7 {[%emt 0:00:00]} 3. g3 {[%emt 0:00:00]} d6 {[%emt 0:00:03]} 4. f4 {[%emt 0:00:11]} c5 {[%emt 0:00:08]} 5. Bg2 {[%emt 0:00:37]} Nc6 {[%emt 0:00:13]} 6. c3 {[%emt 0:00:20]} e6 {[%emt 0:00:10]} 7. Nf3 {[%emt 0:00:19]} Nge7 {[%emt 0:00:11]} 8. O-O {[%emt 0:00:20]} O-O {[%emt 0:00:13]} 9. Nbd2 {[%emt 0:01:05]} b6 {[%emt 0:01:02]} 10. e5 {[%emt 0:01:21]} Ba6 {[%emt 0:03:21]} 11. Nc4 {[%emt 0:03:00]} Bxc4 {[%emt 0:01:18]} 12. dxc4 {[%emt 0:00:54]} dxe5 {[%emt 0:00:06]} 13. Nxe5 {[%emt 0:00:56]} Rc8 {[%emt 0:00:07]} 14. Nxc6 {[%emt 0:03:26]} Nxc6 {[%emt 0:00:04]} 15. Qa4 {[%emt 0:00:15]} Qc7 {[%emt 0:01:55]} 16. Rd1 {[%emt 0:03:54]} Nb8 {[%emt 0:12:19]} 17. Be3 {[%emt 0:02:46]} Rfd8 {[%emt 0:00:16]} 18. Rxd8+ {[%emt 0:20:06]} Rxd8 {[%emt 0:00:07]} 19. Rd1 {[%emt 0:00:29]} Rxd1+ {[%emt 0:01:57]} 20. Qxd1 {[%emt 0:00:02]} Bf6 {[%emt 0:02:03] normal} 21. Kf2 {[%emt 0:01:58] normal} 1/2-1/2

[Event "GER-ch Youth U14 2019"]
[Site "Willingen"]
[Date "2019.06.13"]
[Round "7.21"]
[White "Divry, Alexandre"]
[Black "Rockmann, Enno"]
[Result "1-0"]
[ECO "C09"]
[WhiteElo "1654"]
[BlackElo "1527"]
[Annotator "NA"]
[PlyCount "50"]
[EventDate "2019.06.07"]
[EventType "swiss"]
[EventRounds "9"]
[EventCountry "GER"]
[SourceTitle "playchess.com"]
[Source "ChessBase"]
[SourceQuality "1"]
[TimeControl "40/5400+30:1800+30"]

1. e4 {[%emt 0:00:00]} e6 {[%emt 0:00:00]} 2. d4 {[%emt 0:00:00]} d5 {[%emt 0:00:00]} 3. Nd2 {[%emt 0:00:00]} c5 {[%emt 0:00:18]} 4. Ngf3 {[%emt 0:00:00]} Nc6 {[%emt 0:00:12]} 5. exd5 {[%emt 0:02:22]} exd5 {[%emt 0:04:12]} 6. Bb5 {[%emt 0:01:40]} Qe7+ {[%emt 0:01:49]} 7. Qe2 {[%emt 0:02:48]} Qxe2+ {[%emt 0:00:05]} 8. Bxe2 {[%emt 0:00:02]} cxd4 {[%emt 0:00:26]} 9. Nb3 {[%emt 0:00:26]} Bb4+ {[%emt 0:00:25]} 10. Bd2 {[%emt 0:00:30]} Bf5 {[%emt 0:00:40]} 11. Nbxd4 {[%emt 0:01:42]} Bxd2+ {[%emt 0:00:11]} 12. Kxd2 {[%emt 0:00:07]} Bg6 {[%emt 0:00:13]} 13. Bb5 {[%emt 0:11:02]} Nge7 {[%emt 0:00:19]} 14. Ne5 {[%emt 0:03:24]} O-O {[%emt 0:00:07]} 15. Nexc6 {[%emt 0:02:22]} Nxc6 {[%emt 0:00:19]} 16. Bxc6 {[%emt 0:01:31]} bxc6 {[%emt 0:00:08]} 17. Nxc6 {[%emt 0:00:02]} Rfe8 {[%emt 0:00:44]} 18. c3 {[%emt 0:01:30]} Re6 {[%emt 0:00:31]} 19. Nd4 {[%emt 0:00:14]} Rb6 {[%emt 0:00:18]} 20. b4 {[%emt 0:01:17]} a5 {[%emt 0:00:23]} 21. a3 {[%emt 0:00:11]} Re8 {[%emt 0:01:38]} 22. Rhe1 {[%emt 0:00:33]} f6 {[%emt 0:02:15]} 23. Rxe8+ {[%emt 0:00:33]} Bxe8 {[%emt 0:00:01]} 24. Re1 {[%emt 0:00:24]} Bg6 {[%emt 0:00:36]} 25. Re6 {[%emt 0:00:27]} Rb8 {[%emt 0:01:07] normal} 1-0

[Event "GER-ch Youth U14 2019"]
[Site "Willingen"]
[Date "2019.06.13"]
[Round "7.22"]
[White "Wellssow, Keoki"]
[Black "Straub, Benno"]
[Result "1-0"]
[ECO "A14"]
[WhiteElo "1509"]
[BlackElo "1490"]
[Annotator "NA"]
[PlyCount "82"]
[EventDate "2019.06.07"]
[EventType "swiss"]
[EventRounds "9"]
[EventCountry "GER"]
[SourceTitle "playchess.com"]
[Source "ChessBase"]
[SourceQuality "1"]
[TimeControl "40/5400+30:1800+30"]

1. c4 {[%emt 0:00:00]} Nf6 {[%emt 0:00:00]} 2. g3 {[%emt 0:00:00]} e6 {[%emt 0:00:00]} 3. Bg2 {[%emt 0:00:56]} d5 {[%emt 0:00:00]} 4. Nf3 {[%emt 0:00:44]} Be7 {[%emt 0:00:30]} 5. O-O {[%emt 0:01:12]} O-O {[%emt 0:00:04]} 6. b3 {[%emt 0:01:06]} c6 {[%emt 0:00:15]} 7. Bb2 {[%emt 0:02:34]} Nbd7 {[%emt 0:00:12]} 8. d3 {[%emt 0:11:47]} Qc7 {[%emt 0:00:54]} 9. e3 {[%emt 0:04:17]} b6 {[%emt 0:00:22]} 10. Qe2 {[%emt 0:04:21]} Bb7 {[%emt 0:00:59]} 11. Nc3 {[%emt 0:02:51]} Nc5 {[%emt 0:01:37]} 12. b4 {[%emt 0:06:30]} Ncd7 {[%emt 0:00:48]} 13. a3 {[%emt 0:00:21]} a5 {[%emt 0:01:41]} 14. bxa5 {[%emt 0:05:12]} Rxa5 {[%emt 0:00:12]} 15. cxd5 {[%emt 0:01:48]} exd5 {[%emt 0:00:31]} 16. e4 {[%emt 0:03:14]} d4 {[%emt 0:01:45]} 17. Nxd4 {[%emt 0:02:50]} Rfa8 {[%emt 0:00:22]} 18. Rfc1 {[%emt 0:09:22]} Qd8 {[%emt 0:05:55]} 19. e5 {[%emt 0:16:33]} Nd5 {[%emt 0:00:19]} 20. Nxd5 {[%emt 0:01:57]} cxd5 {[%emt 0:00:18]} 21. e6 {[%emt 0:06:38]} Nc5 {[%emt 0:00:58]} 22. Qg4 {[%emt 0:07:30]} Bf6 {[%emt 0:00:33]} 23. e7 {[%emt 0:07:14]} Qxe7 {[%emt 0:00:33]} 24. Nf5 {[%emt 0:01:33]} Qe6 {[%emt 0:00:58]} 25. Re1 {[%emt 0:00:39]} h5 {[%emt 0:00:37]} 26. Qxh5 {[%emt 0:00:57]} Bxb2 {[%emt 0:02:32]} 27. Ne7+ {[%emt 0:00:42]} Qxe7 {[%emt 0:00:57]} 28. Rxe7 {[%emt 0:00:20]} Bxa1 {[%emt 0:00:06]} 29. Qxf7+ {[%emt 0:00:33]} Kh7 {[%emt 0:00:51]} 30. Qh5+ {[%emt 0:00:38]} Kg8 {[%emt 0:00:07]} 31. Bxd5+ {[%emt 0:00:31]} Bxd5 {[%emt 0:00:14]} 32. Qxd5+ {[%emt 0:00:07]} Kh7 {[%emt 0:00:09]} 33. d4 {[%emt 0:00:40]} Na4 {[%emt 0:01:51]} 34. Qe4+ {[%emt 0:00:46]} Kh8 {[%emt 0:00:23]} 35. Qh4+ {[%emt 0:00:32]} Kg8 {[%emt 0:00:10]} 36. Qf4 {[%emt 0:00:32]} Rf8 {[%emt 0:01:11]} 37. Qg4 {[%emt 0:00:30]} Rf7 {[%emt 0:00:58]} 38. Re8+ {[%emt 0:00:23]} Kh7 {[%emt 0:00:23]} 39. d5 {[%emt 0:00:35]} Rf6 {[%emt 0:02:00]} 40. Qh5+ {[%emt 0:00:28]} Rh6 {[%emt 0:00:11]} 41. Qf5+ {[%emt 0:03:29]} Rg6 {[%emt 0:01:00] normal} 1-0

[Event "GER-ch Youth U14 2019"]
[Site "Willingen"]
[Date "2019.06.14"]
[Round "8.1"]
[White "Bethke, Richard"]
[Black "Weihrauch, Jakob"]
[Result "1/2-1/2"]
[ECO "C68"]
[WhiteElo "2246"]
[BlackElo "2158"]
[Annotator "NA"]
[PlyCount "68"]
[EventDate "2019.06.07"]
[EventType "swiss"]
[EventRounds "9"]
[EventCountry "GER"]
[SourceTitle "playchess.com"]
[Source "ChessBase"]
[SourceQuality "1"]
[TimeControl "40/5400+30:1800+30"]

1. e4 {[%emt 0:00:00]} e5 {[%emt 0:00:00]} 2. Nf3 {[%emt 0:00:00]} Nc6 {[%emt 0:00:00]} 3. Bb5 {[%emt 0:00:03]} a6 {[%emt 0:00:00]} 4. Bxc6 {[%emt 0:00:05]} dxc6 {[%emt 0:00:00]} 5. O-O {[%emt 0:00:07]} Bg4 {[%emt 0:03:18]} 6. h3 {[%emt 0:00:08]} Bxf3 {[%emt 0:00:09]} 7. Qxf3 {[%emt 0:00:05]} Qd7 {[%emt 0:01:30]} 8. d3 {[%emt 0:01:35]} Bc5 {[%emt 0:02:56]} 9. Nd2 {[%emt 0:01:21]} O-O-O {[%emt 0:02:59]} 10. a4 {[%emt 0:03:36]} h5 {[%emt 0:04:32]} 11. Nc4 {[%emt 0:06:10]} f6 {[%emt 0:01:47]} 12. Be3 {[%emt 0:01:32]} Bxe3 {[%emt 0:01:25]} 13. Qxe3 {[%emt 0:00:45]} Qd4 {[%emt 0:03:21]} 14. b4 {[%emt 0:02:51]} Qxe3 {[%emt 0:01:35]} 15. fxe3 {[%emt 0:02:32]} Nh6 {[%emt 0:03:04]} 16. Rf2 {[%emt 0:09:11]} Nf7 {[%emt 0:04:10]} 17. Na5 {[%emt 0:02:26]} Rd6 {[%emt 0:02:21]} 18. Nb3 {[%emt 0:00:08]} b6 {[%emt 0:02:19]} 19. a5 {[%emt 0:00:48]} Kb7 {[%emt 0:00:23]} 20. axb6 {[%emt 0:01:45]} cxb6 {[%emt 0:00:02]} 21. Ra3 {[%emt 0:00:40]} Ng5 {[%emt 0:07:07]} 22. Rf1 {[%emt 0:01:49]} Ra8 {[%emt 0:07:37]} 23. Rb1 {[%emt 0:00:46]} Rdd8 {[%emt 0:02:55]} 24. Kf2 {[%emt 0:03:07]} Ne6 {[%emt 0:03:22]} 25. Ke2 {[%emt 0:00:55]} Kc7 {[%emt 0:02:02]} 26. Rba1 {[%emt 0:00:24]} Kb7 {[%emt 0:00:08]} 27. Kd2 {[%emt 0:07:23]} Rdc8 {[%emt 0:08:55]} 28. d4 {[%emt 0:24:21]} Rd8 {[%emt 0:01:50]} 29. c3 {[%emt 0:00:24]} exd4 {[%emt 0:08:02]} 30. exd4 {[%emt 0:00:18]} Re8 {[%emt 0:03:10]} 31. h4 {[%emt 0:05:03]} g5 {[%emt 0:06:52]} 32. Rh1 {[%emt 0:04:06]} Rg8 {[%emt 0:01:55]} 33. g3 {[%emt 0:02:02] normal} gxh4 {[%emt 0:00:58]} 34. Rxh4 {[%emt 0:00:11]} Rxg3 {[%emt 0:01:21] normal} 1/2-1/2